{"text_format":"1","workbook":"xlsx","n_sheets":1,"sheets":["Feuil1"],"not_rendered":{"charts":0,"images":1,"macros":1,"external_links":0,"defined_names":0,"comments":0,"pivot_tables":0},"unopened":[],"bounds":{"document_bytes":16777216,"sheet_cells":100000,"rows_first":2000,"rows_last":500,"rows_between":2000,"halvings":0,"cell_chars":16384,"cell_head_chars":4096},"cells_cut":0,"cells_raw":0,"read":"whole","date_system":"1900"}

{"sheet":"Feuil1","index":0,"n_rows":66,"n_cols":20,"rows_kept":66,"cut":false,"hidden":false,"merged":[]}
[64]
[null,"Tirage au sort",null,"Noms des équipes",null,"GROUPE1","GROUPE2","GROUPE2","GROUPE4","GROUPE3","GROUPE6","GROUPE4","GROUPE8","GROUPE5","GROUPE10","GROUPE6","GROUPE12","GROUPE7","GROUPE14","GROUPE8"]
[null,17,null,"ARLANC 2",1,{"$f":"IFERROR(VLOOKUP(E3,B:D,3,0),\"\")","v":"ST GERVAIS 1"},9,{"$f":"IFERROR(VLOOKUP(G3,B:D,3,0),\"\")","v":"LECUELLE 1"},17,{"$f":"IFERROR(VLOOKUP(I3,B:D,3,0),\"\")","v":"ARLANC 2"},25,{"$f":"IFERROR(VLOOKUP(K3,B:D,3,0),\"\")","v":"FANNY CLERMONT"},33,{"$f":"IFERROR(VLOOKUP(M3,B:D,3,0),\"\")","v":"CARREAU DU FORT"},41,{"$f":"IFERROR(VLOOKUP(O3,B:D,3,0),\"\")","v":"RIOM 1"},49,{"$f":"IFERROR(VLOOKUP(Q3,B:D,3,0),\"\")","v":"MONTJOIE 1"},57,{"$f":"IFERROR(VLOOKUP(S3,B:D,3,0),\"\")","v":"ST REMY SUR DUROLLE"}]
[null,41,null,"RIOM 1",2,{"$f":"IFERROR(VLOOKUP(E4,B:D,3,0),\"\")","v":"CROUZOL VOLVIC 1"},10,{"$f":"IFERROR(VLOOKUP(G4,B:D,3,0),\"\")","v":"MESSEIX 1"},18,{"$f":"IFERROR(VLOOKUP(I4,B:D,3,0),\"\")","v":"PSA 4"},26,{"$f":"IFERROR(VLOOKUP(K4,B:D,3,0),\"\")","v":"LES LIONDARDS"},34,{"$f":"IFERROR(VLOOKUP(M4,B:D,3,0),\"\")","v":"COPAINS DU BOUCHONS 1"},42,{"$f":"IFERROR(VLOOKUP(O4,B:D,3,0),\"\")","v":"MANZAT 2"},50,{"$f":"IFERROR(VLOOKUP(Q4,B:D,3,0),\"\")","v":"ST REMY SUR DUROLLE"},58,{"$f":"IFERROR(VLOOKUP(S4,B:D,3,0),\"\")","v":"P 2000 1"}]
[null,64,null,"PSA 3",3,"LOUBEYRAT 2",11,"FACC 1",19,"JUMEAUX 2",27,"DOMES ORCINES 1",35,"PUY ST ROMAIN",43,"AUBIERE 3",51,"PONT DU CHATEAU 1",59,"ST FERREOL LES COTES 2"]
[null,8,null,"LES AMIS VICOMTOIS 2",4,"ST FERREOL DES COTES 1",12,"BOULE BORTOISE 2",20,"LE LEMBRON 1",28,"LES AMIS VICOMTOIS 1",36,"MENETROL 2",44,"LA PLAINE 1",52,"LE PAVE 1",60,"JCC"]
[null,39,null,"CUNLHAT 1",5,"LA BOURBOULE 1",13,"MONTJOIE 2",21,"P 2000 1",29,"AUBIERE 2",37,"PLAUZAT 1",45,"ST OURS LES ROCHES 1",53,"ST FERREOL LES COTES 2",61,"MENETROL 1"]
[null,6,null,"JC BILLOM 2",6,"JC BILLOM 2",14,"PALETS ANCIZOIS 1",22,"LOUBEYRAT 1",30,"USI 2",38,"LES VIGNETTES 1",46,"ST GENEST CHAMPANELLE",54,"DOMES ORCINES 2",62,"LIMARIE 1"]
[null,2,null,"CROUZOL VOLVIC 1",7,"JC BILLOM 1",15,"PETANQUE DE LA GARE 1",23,"HAUT LIVRADOIS 1",31,"GERZAT 1",39,"CUNLHAT 1",47,"ARLANC 4",55,"STADE CLERMONTOIS",63,"SALINS PETANK"]
[null,7,null,"JC BILLOM 1",8,"LES AMIS VICOMTOIS 2",16,"AUGEROLLES 1",24,"JUMEAUX 1",32,"ARLANC 3",40,"BIBE POND DE SAURIER",48,"PALLADUC 1",56,"BOULE BORTOISE 1",64,"PSA 3"]
[null,14,null,"PALETS ANCIZOIS 1"]
[null,3,null,"LOUBEYRAT 2"]
[null,27,null,"DOMES ORCINES 1"]
[null,13,null,"MONTJOIE 2"]
[null,31,null,"GERZAT 1"]
[null,61,null,"MENETROL 1"]
[null,9,null,"LECUELLE 1"]
[null,29,null,"AUBIERE 2"]
[null,38,null,"LES VIGNETTES 1"]
[null,28,null,"LES AMIS VICOMTOIS 1"]
[null,52,null,"LE PAVE 1"]
[null,40,null,"BIBE POND DE SAURIER"]
[null,35,null,"PUY ST ROMAIN"]
[null,15,null,"PETANQUE DE LA GARE 1"]
[null,18,null,"PSA 4"]
[null,56,null,"BOULE BORTOISE 1"]
[null,22,null,"LOUBEYRAT 1"]
[null,21,null,"P 2000 1"]
[null,25,null,"FANNY CLERMONT"]
[null,48,null,"PALLADUC 1"]
[null,46,null,"ST GENEST CHAMPANELLE"]
[null,60,null,"JCC"]
[null,36,null,"MENETROL 2"]
[null,10,null,"MESSEIX 1"]
[null,55,null,"STADE CLERMONTOIS"]
[null,26,null,"LES LIONDARDS"]
[null,30,null,"USI 2"]
[null,49,null,"MONTJOIE 1"]
[null,20,null,"LE LEMBRON 1"]
[null,24,null,"JUMEAUX 1"]
[null,58,null,"P 2000 1"]
[null,51,null,"PONT DU CHATEAU 1"]
[null,62,null,"LIMARIE 1"]
[null,5,null,"LA BOURBOULE 1"]
[null,16,null,"AUGEROLLES 1"]
[null,1,null,"ST GERVAIS 1"]
[null,19,null,"JUMEAUX 2"]
[null,45,null,"ST OURS LES ROCHES 1"]
[null,34,null,"COPAINS DU BOUCHONS 1"]
[null,43,null,"AUBIERE 3"]
[null,44,null,"LA PLAINE 1"]
[null,33,null,"CARREAU DU FORT"]
[null,4,null,"ST FERREOL DES COTES 1"]
[null,11,null,"FACC 1"]
[null,32,null,"ARLANC 3"]
[null,42,null,"MANZAT 2"]
[null,12,null,"BOULE BORTOISE 2"]
[null,54,null,"DOMES ORCINES 2"]
[null,23,null,"HAUT LIVRADOIS 1"]
[null,47,null,"ARLANC 4"]
[null,37,null,"PLAUZAT 1"]
[null,53,null,"ST FERREOL LES COTES 2"]
[null,50,null,"ST REMY SUR DUROLLE"]
[null,59,null,"ST FERREOL LES COTES 2"]
[null,57,null,"ST REMY SUR DUROLLE"]
[null,63,null,"SALINS PETANK"]